Cogmind - Beta 10.2 @@@ ROGUE MODE // 2020.12.18 @ 22:40:46 Player: Enzo Result: Destroyed by as-85349 with Assembled Heavy Rifle Performance ------------- Evolutions (0) 0 Regions Visited (2) 400 Robots Destroyed (25) 125 Value Destroyed (279) 279 Prototype IDs (0) 0 Alien Tech Used (0) 0 Bonus (0) 0 TOTAL SCORE: 804 Bonus ------- None Cogmind --------- Core Integrity 0/250 Matter 130/300 Energy 35/100 System Corruption 0% Temperature Cool (0) Movement Core (300) Ox5 Location -10/Mines Parts ------- > --- POWER (1) -------- (None) > --- PROPULSION (2) --- (None) > --- UTILITY (2) ------ Large Storage Unit > --- WEAPON (2) ------- Mining Laser > --- INVENTORY (10) --- Medium Storage Unit Terrain Scan Processor Peak State ------------ > --- POWER ------------ Light Ion Engine > --- PROPULSION ------- Light Treads Light Treads > --- UTILITY ---------- Large Storage Unit Improved Terrain Scanner > --- WEAPON ----------- EM Shotgun EM Shotgun > --- INVENTORY -------- Medium Storage Unit Terrain Scan Processor Light Cannon Mining Laser [Rating: 10] Favorites ----------- Power Light Ion Engine Engine Light Ion Engine Propulsion Light Treads Treads Light Treads Utility Improved Terrain Scanner Device Improved Terrain Scanner Storage Large Storage Unit Weapon Medium Laser Energy Gun Medium Laser Ballistic Cannon Light Cannon Launcher Grenade Launcher Special Weapon Mining Laser Build | -11 -10 -10 ------- Run | Scr Mat Min Slots Evolved . | . . . Power . | . . . Propulsion . | . . . Utility . | . . . Weapon . | . . . Parts Attached 23 | 7 7 9 Power 2 | 1 . 1 Engine 2 | 1 . 1 Core . | . . . Reactor . | . . . Propulsion 2 | 2 . . Treads 2 | 2 . . Leg . | . . . Wheel . | . . . Hover . | . . . Flight . | . . . Utility 4 | 2 2 . Device 1 | 1 . . Storage 3 | 1 2 . Processor . | . . . Hackware . | . . . Protection . | . . . Artifact . | . . . Weapon 15 | 2 5 8 Energy Gun 7 | 2 1 4 Energy Cannon . | . . . Ballistic Gun . | . . . Ballistic Cannon 3 | . 2 1 Launcher 4 | . 2 2 Special Weapon 1 | . . 1 Impact Weapon . | . . . Slashing Weapon . | . . . Piercing Weapon . | . . . Special Melee Weapon . | . . . Unidentified Prototypes . | . . . Parts Lost 11 | . 1 10 Power 2 | . 1 1 Propulsion 2 | . . 2 Utility 1 | . . 1 Weapon 6 | . . 6 Highest Loss Streak 8 | . 1 8 Average Slot Usage (%) 89 | . 99 70 Engine 10 | . 13 4 Treads 24 | . 28 18 Device 12 | . 14 10 Storage 14 | . 14 14 Energy Gun 12 | . 14 10 Ballistic Cannon 12 | . 12 10 Launcher 1 | . 1 . Naked Turns . | . . . Heaviest Build 26 | 12 26 25 Greatest Support 40 | 40 40 40 Greatest Overweight (x) 6 | . . 6 Average Overweight (x) . | . . . Largest Inventory Capacity 10 | 6 10 10 Average Capacity 8 | 5 8 10 Most Carried 6 | 1 5 6 Average Carried 3 | . 3 4 Final Capacity 10 | 6 10 10 Final Carried 5 | 1 5 2 Class Distribution -------------------- 100% | Mutant Dominant Class ---------------- Mutant | -10/Materials Mutant | -10/Mines Resources | -11 -10 -10 ----------- Run | Scr Mat Min Matter Collected 460 | 270 46 144 Remotely . | . . . Salvage Created 596 | 207 190 199 Parts 38 | 13 14 11 Haulers Intercepted 1 | . 1 . Recyclers Shooed 1 | . . 1 Parts Field Recycled . | . . . Retrieved Matter . | . . . Parts Self-Destructed . | . . . Prevented . | . . . Kills | -11 -10 -10 ------- Run | Scr Mat Min Combat Hostiles Destroyed 17 | . 8 9 Guns 2 | . 1 1 Cannons 3 | . 2 1 AOE 12 | . 5 7 Classes Destroyed 10 | 2 6 2 Worker 1 | . . 1 Builder 2 | . 1 1 Tunneler 5 | 5 . . Hauler 1 | . 1 . Recycler 3 | 1 . 2 Operator 1 | . 1 . Watcher 1 | . 1 . Swarmer 9 | . 6 3 Grunt 2 | . 2 . Assembled 6 | . . 6 Best Kill Streak 6 | 2 3 6 Combat Bots Only 5 | . 3 5 Max Kills in Single Turn 3 | 1 2 3 Gunslinging . | . . . Exploded 2 | . 2 2 Melee . | . . . Uniques/NPCs Destroyed . | . . . Combat | -11 -10 -10 -------- Run | Scr Mat Min Damage Taken 1188 | . 231 957 Core 251 | . 29 222 Absorbed by Shields . | . . . Core Remaining (%) 100 | 100 . . Volleys Fired 77 | 15 20 42 Largest 2 | 2 2 2 Hottest 100 | 100 85 100 Shots Fired 118 | 30 33 55 Gun 66 | 30 13 23 Cannon 40 | . 15 25 Launcher 10 | . 5 5 Special 2 | . . 2 Kinetic 40 | . 15 25 Thermal 61 | 30 13 18 Explosive 10 | . 5 5 Electromagnetic 7 | . . 7 Robot Hit Streak 15 | 15 7 9 Robot Miss Streak 5 | 2 4 5 Penetration Max . | . . . Secondary Targets . | . . . Shots Hit Robots 69 | 21 18 30 Core Hits 47 | 7 17 23 Critical Hits . | . . . Critical Kills . | . . . Critical Parts Destroyed . | . . . Melee Attacks . | . . . Impact . | . . . Slashing . | . . . Piercing . | . . . Sneak Attacks . | . . . Combat Hostiles . | . . . Follow-up Attacks . | . . . Damage Inflicted 1936 | 250 621 1065 Guns 504 | 250 115 139 Cannons 383 | . 101 282 Explosions 1048 | . 405 643 Melee . | . . . Ramming 1 | . . 1 Kinetic 383 | . 101 282 Thermal 474 | 250 115 109 Explosive 1048 | . 405 643 Electromagnetic 30 | . . 30 Impact . | . . . Slashing . | . . . Piercing . | . . . Highest Corruption . | . . . Average Corruption . | . . . Corruption Purged . | . . . Overload Shots . | . . . Overflow Damage 20 | . . 20 Projectiles 10 | . . 10 Explosions 10 | . . 10 Melee . | . . . Knockbacks 1 | . 1 . Impact . | . . . Kinetic 1 | . 1 . Secondary . | . . . Self-Inflicted Damage 4 | . . 4 Shots 1 | . . 1 Rammed 1 | . . 1 Targets Rammed 1 | . . 1 Kicked . | . . . Crushed . | . . . Highest Temperature 235 | 235 84 60 Average Temperature 44 | 73 30 20 Received Heat Transfer 129 | . 69 60 Siege Activations . | . . . Robots Corrupted . | . . . Combat Hostiles . | . . . Parts Fried . | . . . Impact Corruptions . | . . . Robots Melted . | . . . Combat Hostiles . | . . . Parts Melted 3 | 3 . . Heat Transferred 1382 | 740 333 309 Parts Sabotaged . | . . . Parts Stolen . | . . . Parts Stripped . | . . . Power Chain Reactions . | . . . Missiles Intercepted . | . . . Alert | -11 -10 -10 ------- Run | Scr Mat Min Peak Influence 229 | 30 229 132 Initial 42 | . 19 42 Average 92 | 13 131 95 Maximum Alert Level 1 | . 1 . Low Security (%) 86 | 100 72 100 Level 1 13 | . 27 . Level 2 . | . . . Level 3 . | . . . Level 4 . | . . . Level 5 . | . . . High Security . | . . . Max Security . | . . . Squads Dispatched 2 | . 2 . Investigation 1 | . 1 . Extermination . | . . . Reinforcement 1 | . 1 . Assault . | . . . Garrison . | . . . Intercept . | . . . Construction Impeded . | . . . Haulers Reinforced . | . . . Stealth | -11 -10 -10 --------- Run | Scr Mat Min Distress Signals 1 | . 1 . Communications Jammed . | . . . Distress Signals . | . . . Times Spotted 36 | . 15 21 Peak Tracking Total 7 | . 3 7 Tactical Retreats 4 | . 1 3 Traps | -11 -10 -10 ------- Run | Scr Mat Min Traps Triggered 1 | . 1 . Indirectly . | . . . Trap Hack Attempts . | . . . Triggered . | . . . Disarmed . | . . . Reprogrammed . | . . . Reused . | . . . Traps Extracted . | . . . Installed . | . . . Triggered . | . . . Machines | -11 -10 -10 ---------- Run | Scr Mat Min Machines Disabled 1 | . 1 . Max in Single Turn 1 | . 1 . Machines Sabotaged . | . . . Garrisons Compromised . | . . . Overloaded Fab Kills . | . . . Fab Network Shutdowns . | . . . Hacking | -11 -10 -10 --------- Run | Scr Mat Min Machines Accessed 1 | . 1 . Terminals 1 | . 1 . Fabricators . | . . . Repair Stations . | . . . Recycling Units . | . . . Scanalyzers . | . . . Garrison Access . | . . . Total Hacks 7 | . 7 . Successful 5 | . 5 . Failed 2 | . 2 . Catastrophic . | . . . Database Lockouts . | . . . Manual 6 | . 6 . Terminals 7 | . 7 . Fabricators . | . . . Repair Stations . | . . . Recycling Units . | . . . Scanalyzers . | . . . Garrison Access . | . . . Terminal Hacks 3 | . 3 . Robot Analysis 2 | . 2 . Locate Traps 1 | . 1 . Fabricator Hacks . | . . . Repair Station Hacks . | . . . Recycling Unit Hacks . | . . . Scanalyzer . | . . . Garrison Access Hacks . | . . . Unauthorized Hacks 2 | . 2 . Terminals 2 | . 2 . Botnet 1 | . 1 . Operators 1 | . 1 . Fabricators . | . . . Repair Stations . | . . . Recycling Units . | . . . Scanalyzers . | . . . Garrison Access . | . . . Data Cores Recovered . | . . . Used . | . . . Hacking Detections 1 | . 1 . Full Trace Events . | . . . Feedback Events . | . . . Feedback Blocked . | . . . Robot Schematics Acquired . | . . . Robots Built . | . . . Matter . | . . . Time . | . . . Total Robot Build Rating . | . . . Part Schematics Acquired . | . . . Parts Built . | . . . Matter . | . . . Time . | . . . Total Part Build Rating . | . . . Parts Repaired . | . . . Time . | . . . Parts Recycled . | . . . Recycled Matter . | . . . Retrieved Matter . | . . . Retrieved Components . | . . . Parts Scanalyzed . | . . . Part Schematics Acquired . | . . . Parts Damaged . | . . . Bothacking | -11 -10 -10 ------------ Run | Scr Mat Min Used RIF Installer . | . . . Robots Hacked . | . . . Non-combat . | . . . Combat . | . . . Robot Hacks Applied . | . . . Relay Couplers Released . | . . . Robots Rewired . | . . . Allies Hacked . | . . . Hacks Repelled . | . . . Allies | -11 -10 -10 -------- Run | Scr Mat Min Total Allies . | . . . Largest Group . | . . . Highest-Rated Group . | . . . Highest-Rated Ally . | . . . Total Orders . | . . . Ally Attacks . | . . . Total Damage . | . . . Kills . | . . . Allies Corrupted . | . . . Allies Melted . | . . . Intel | -11 -10 -10 ------- Run | Scr Mat Min Robot Analysis Total 2 | . 2 . Derelict Logs Recovered . | . . . Drone Launches . | . . . Drone Recoveries . | . . . Exploration | -11 -10 -10 ------------- Run | Scr Mat Min Turns Passed 1239 | 309 604 326 Spaces Moved 572 | 158 302 112 Core 19 | 3 . 16 Treads 553 | 155 302 96 Legs . | . . . Wheels . | . . . Hover . | . . . Flight . | . . . Fastest Speed 50 | 50 160 160 Average Speed 164 | 157 160 184 Slowest Speed 350 | 160 160 350 Overloaded Moves . | . . . Propulsion Burnouts . | . . . Robots Hopped . | . . . Cave-ins Triggered . | . . . Exploration Rate (%) 31 | 10 57 27 Regions Visited 2 Branch Regions 1 Pre-discovered Areas . | . . . Known Exits Taken . | . . . Unknown Exits Taken 2 | 1 1 . Scrap Searched 1 | . . 1 Spaces Dug . | . . . Terrain Destroyed 41 | . 13 28 Melee . | . . . Projectile . | . . . AOE 41 | . 13 28 Terrain Rammed . | . . . Walls Destroyed . | . . . Machines Disabled . | . . . Actions | -11 -10 -10 --------- Run | Scr Mat Min Total 740 | 184 387 169 Wait 61 | 4 53 4 Move 570 | 157 301 112 Hop . | . . . Pick Up 6 | 1 4 1 Fast Attach 9 | 7 . 2 Attach 4 | . . 4 Detach . | . . . Swap 10 | . 7 3 Drop 2 | . 2 . Fire 77 | 15 20 42 Melee . | . . . Ram 1 | . . 1 Kick . | . . . Crush . | . . . Escape Stasis . | . . . Rewire . | . . . Trap . | . . . Miscellaneous . | . . . Route ------- -11/Scrapyard -10/Materials (discovered 2 exits: [*Min x2]) -10/Mines History --------- Turn | Location | Event 24 | -11/Scrapyard | Discovered new exit (range 16) 310 | -11/Scrapyard | Entered Materials 311 | -10/Materials | Build established: Mutant 717 | -10/Materials | Discovered new exit (range 10) 849 | -10/Materials | Discovered new exit (range 9) 914 | -10/Materials | Entered Mines 1095 | -10/Mines | Assembled infested the area 1100 | -10/Mines | Assisted by a Guerilla fighting off Assembled 1144 | -10/Mines | Core integrity fell below 50% 1191 | -10/Mines | Lost 8 parts (1p2n1u4w) 1218 | -10/Mines | Core integrity fell below 20% 1240 | -10/Mines | Destroyed by as-85349 with Assembled Heavy Rifle Last Messages --------------- 01182_ Acquired 9 matter. 01195_ K-01 Serf collects debris. 01195_ as-21217 sneak attacks. 01195_ R-06 Scavenger destroyed. 01196_ The unstable cave ceiling collapses. 01197_ K-01 Serf destroyed. 01199_ U-05 Engineer builds a Wall. 01202_ Lgt. Cannon destroyed. 01202_ Slammed into as-21217. 01205_ as-21217 suffers critical hit. 01205_ as-21217 destroyed. 01208_ U-05 Engineer lays Concrete. 01209_ HV Slug penetrates Wall. 01209_ HV Slug penetrates Earth. 01210_ U-05 Engineer lays Concrete. 01213_ UV-PO5(h) destroyed. 01213_ U-05 Engineer builds a Wall. 01217_ Acquired Sml. Laser. 01218_ U-05 Engineer builds a Wall. 01226_ Sml. Laser destroyed. Map ----- +----------------------------------------------------+ | | | | | | | | | | | | | | | ?????????????????????????????????????????????????? | | ?????????????????????????????????????????????????? | | ?????????????????????????????????????????????????? | | ?????????????????????????????????????????????????? | | ?????????????????????????????????????????????????? | | ?????????????????????????????????????????????????? | | ???????????????????????????#?????????????????????? | | ????????????????????????#????????????????????????? | | ?????????????????????????????????????????????????? | | ???????????????#?????????????????????????????????? | | ?????????????????????????????????????????????????? | | ?????????????????????????????????????????????????? | | ????????????????????????#????????????????????????? | | ?????????????????????#????????#??????????????????? | | ????????????????????##???????????????????????????? | | ?????????#?? ??????#????#???#??????#?????????????? | | ???????#??#?????#?????####???????????????????????? | | ??????????## #########;##### #??????????????????? | | ?????????#?# |! @ #????#?????????????? | | ?????????#?# ! a######??????????????????? | | ???????????## ########; #???????????????????????? | | ??????????????????#??## ###?????????????????????? | | ?????? ?????? ???#???## % ##???? ???????????????? | | ?????????????????????# #????????????????????? | | ??????????#???????#??# #????????????????????? | | ???????????? ????###### %%!*##?#?????????????????? | | ?????"?? ?????#???# * %=%$ #?????## ??????????? | | ??????????????????# =%! !*= #????????????????? | | ????? ??? ?#????## ## =% # #?#??????????????? | | ???#?????????????## ## !% # #??????????????? | | ???????####??###### ## %*% #??????????????? | | ?????### ##### ### # ##??????????????? | | ???#### #### #?#### ??????????????? | | ? ?# ######??# #???# # #" ##?????????????? | | ???# ###?#??#?# #????#? !# ##??????????????? | | ? ?+ ##?#???#?# #??????! #? ??#?????????????? | | ? ?+ ##?#???## #??#??? #??#???????????????? | | ? ?# #??? ??# #????#?? #??????????????????? | | ?## ##?????# ??????? ???????????????????? | | ??# #???? # #?#?#?##?????? ?????????????? | | ??# ####### #?#?????????????????????????? | | ?## #???????????#???????????????? | | ??# ## ######## ######??#???????????????????? | +----------------------------------------------------+ Best States ------------- Heat Dissipation 25 Energy Generation 10 Energy Capacity 125 Matter Stores 300 Matter Capacity 300 Sight Range 16 Terrain Scan Range 16 Terrain Scan Density 10 Evasion (%) 40 Recoil Reduction 2 Item Schematics ----------------- None Robot Schematics ------------------ None Fabricated ------------ Nothing Alien Tech Used ----------------- None Achievements -------------- None Challenges ------------ None Game ------ Seed MagneticCloakingScrap Manual? 0 Play Time 00:12:33 Cumulative 47.6 hours Start 2020.12.18 @ 22:31:10 End 2020.12.18 @ 22:40:46 Sessions 1 Manual Loads 0 Difficulty Rogue Special Mode None Game No. 111 Rogue 111 Adventurer 0 Explorer 0 Win Type - Total 0 Types 0/0/0/0/0/0/0/0/0 Lore% 41 Gallery% 42 Achievement% 34 Wizard Run 0 Options --------- ASCII 0 Keyboard 0 Movement Numpad Keybinds 0 Fullscreen 2 Font 24/Smallcaps Map View 76x50 Tactical HUD 1 Map Filters NONE Filters NONE Steam 1 RUN: 384f9077-e40c-40ad-87ad-ce1553715b81